bitfinex/quotes_SOLUSD_20241121
["timestamp","ask_amount","ask_price","bid_price","bid_amount"]
[1732193216531,27.25619315,244.38,244.37,0.47112612]
[1732193216957,27.25619315,244.38,244.33,0.47112612]
[1732193217164,4.0919,244.38,244.37,0.47112612]
[1732193217453,27.25619315,244.38,244.37,0.47112612]
[1732193217636,27.25619315,244.38,244.35,0.47112612]
[1732193217838,23.16429315,244.36,244.35,0.47112612]
[1732193218037,23.16429315,244.36,244.32,0.47112612]
[1732193218345,23.16429315,244.33,244.32,0.47112612]
[1732193218528,46.94117715,244.33,244.32,0.47112612]
[1732193219037,51.03397715,244.33,244.32,0.47112612]
[1732193219861,23.776884,244.32,244.3,0.47112612]
[1732193220046,23.16429315,244.31,244.3,0.47112612]
[1732193220233,46.94117715,244.31,244.3,0.47112612]
[1732193221058,51.03427715,244.31,244.3,0.47112612]
[1732193222159,51.03427715,244.31,244.26,0.47112612]
[1732193222340,51.03427715,244.31,244.12,20.9809]
[1732193222341,23.776884,244.26,244.25,0.47112612]
[1732193222545,46.94117715,244.26,244.23,0.47112612]
[1732193222854,46.94117715,244.24,244.23,0.47112612]
[1732193223060,23.776884,244.23,244.21,0.47112612]
[1732193223232,23.16429315,244.22,244.21,0.47112612]
[1732193223433,23.776884,244.22,244.21,0.47112612]
[1732193223657,23.16429315,244.24,244.23,0.47112612]
[1732193224269,24.0945,244.23,244.17,0.47112612]
[1732193224433,23.16429315,244.2,244.19,0.47112612]
[1732193224634,23.976884,244.22,244.21,0.47112612]
[1732193225137,47.14117715,244.22,244.21,0.47112612]
[1732193226040,46.94117715,244.22,244.21,0.47112612]
[1732193227540,23.776884,244.2,244.17,0.47112612]
[1732193227744,46.94117715,244.18,244.17,0.47112612]
[1732193228553,23.776884,244.17,244.15,0.47112612]
[1732193228759,46.94117715,244.16,244.15,0.47112612]
[1732193229137,51.03677715,244.16,244.15,0.47112612]
[1732193229336,43.776884,244.15,244.07,0.47112612]
[1732193229539,70.1054703,244.08,244.07,0.47112612]
[1732193229739,23.776884,244.07,244.05,0.47112612]
[1732193229950,23.976884,244.07,244.05,0.47112612]
[1732193230170,23.976884,244.07,243.96,12.6658]
[1732193230458,23.16429315,243.97,243.94,31.8828]
[1732193231141,23.976884,244.07,243.9,16.7657]
[1732193231142,23.16429315,243.95,243.9,12.6658]
[1732193231466,23.16429315,243.91,243.87,31.8231]
[1732193231643,23.16429315,243.89,243.85,12.2239]
[1732193231843,23.16429315,243.89,243.85,16.3246]
[1732193232049,23.16429315,243.91,243.85,26.5768]
[1732193232361,23.16429315,243.97,243.88,23.66429315]
[1732193232657,37.70277807,244.01,243.92,38.20277807]
[1732193232837,37.70277807,244.03,243.95,30.8678]
[1732193233167,37.70277807,243.97,243.95,30.8678]
[1732193233367,37.70277807,243.97,243.92,10.2489]
[1732193233570,37.70277807,243.94,243.89,20.0]
[1732193233867,37.70277807,243.94,243.89,24.1]
[1732193234073,37.70277807,243.96,243.89,24.1]
[1732193234364,37.70277807,243.96,243.89,34.3505]
[1732193234549,23.776884,244.01,243.9,37.70277807]
[1732193234550,37.70277807,243.98,243.9,37.70277807]
[1732193234860,37.70277807,243.96,243.89,10.2505]
[1732193235063,37.70277807,243.96,243.89,14.3507]
[1732193235257,37.70277807,243.94,243.89,14.3507]
[1732193235460,37.70277807,243.96,243.89,14.3507]
[1732193236060,37.70277807,243.96,243.88,30.8678]
[1732193236061,37.70277807,243.92,243.88,30.8678]
[1732193236243,37.70277807,243.9,243.85,16.3247]
[1732193236443,37.70277807,243.92,243.85,16.3247]
[1732193236638,4.0983,244.0,243.85,12.2239]
[1732193236639,37.70277807,243.9,243.85,12.2239]
[1732193236865,37.70277807,243.92,243.85,12.2239]
[1732193237172,37.70277807,243.96,243.87,37.70277807]
[1732193237544,37.70277807,243.92,243.85,64.27967807]
[1732193237744,37.70277807,243.94,243.86,20.0]
[1732193238057,37.70277807,243.92,243.86,20.0]
[1732193238260,37.70277807,243.9,243.86,20.0]
[1732193238453,4.0993,243.94,243.81,69.87747807]
[1732193238454,37.70277807,243.88,243.81,36.2761]
[1732193239040,37.70277807,243.88,243.81,84.23267807]
[1732193239247,37.70277807,243.92,243.83,37.70277807]
[1732193239647,23.776884,243.95,243.81,46.5299]
[1732193239648,37.70277807,243.9,243.81,84.23267807]
[1732193240052,37.70277807,243.87,243.81,42.4285]
[1732193240747,37.70277807,243.87,243.81,14.3553]
[1732193241657,37.70277807,243.85,243.81,10.2538]
[1732193241854,37.70277807,243.91,243.82,37.70277807]
[1732193242055,37.70277807,243.93,243.84,37.70277807]
[1732193242376,37.70277807,243.93,243.85,14.353]
[1732193243370,37.70277807,243.97,243.88,37.70277807]
[1732193244076,37.70277807,243.95,243.88,20.0]
[1732193244377,37.70277807,243.95,243.89,4.1002]
[1732193244588,37.70277807,243.95,243.89,14.3507]
[1732193245167,37.70277807,243.95,243.87,33.2444]
[1732193245168,37.70277807,243.93,243.87,33.2444]
[1732193245372,37.70277807,243.93,243.87,37.3448]
[1732193245556,37.70277807,243.91,243.8,69.95997807]
[1732193245877,37.70277807,243.91,243.82,37.70277807]
[1732193246077,37.70277807,243.89,243.8,69.95997807]
[1732193246259,37.70277807,243.89,243.82,10.2532]
[1732193246783,37.70277807,243.87,243.82,10.2532]
[1732193247260,37.70277807,243.87,243.8,31.7572]
[1732193247448,37.70277807,243.85,243.79,13.0392]
[1732193247852,37.70277807,243.83,243.78,4.1019]
[1732193248055,37.70277807,243.83,243.77,10.2553]
[1732193248650,37.70277807,243.85,243.77,10.2553]
[1732193249050,23.776884,243.84,243.77,10.2553]
[1732193249369,37.70277807,243.85,243.77,10.2553]
[1732193249370,23.776884,243.82,243.77,10.2553]
[1732193249967,23.776884,243.82,243.74,34.5234]
[1732193249968,37.70277807,243.81,243.74,34.5234]
[1732193250275,37.70277807,243.81,243.74,44.7802]
[1732193250480,37.70277807,243.81,243.74,82.48297807]
[1732193250979,37.70277807,243.85,243.78,37.70277807]
[1732193251183,13.3605,243.93,243.75,20.0]
[1732193251184,37.70277807,243.81,243.75,20.0]
[1732193251474,37.70277807,243.83,243.75,57.70277807]
[1732193251657,37.70277807,243.85,243.77,37.70277807]
[1732193252050,37.70277807,243.87,243.77,37.70277807]
[1732193252250,23.776884,243.86,243.77,37.70277807]
[1732193252448,23.776884,243.86,243.75,20.0]
[1732193252449,23.776884,243.86,243.79,37.70277807]
[1732193253166,23.776884,243.86,243.78,14.3571]
[1732193253167,37.70277807,243.83,243.76,4.1022]
[1732193253666,37.70277807,243.85,243.77,37.70277807]
[1732193254486,37.70277807,243.85,243.78,4.102]
[1732193254665,23.22827622,243.85,243.78,4.102]
[1732193254981,23.22827622,243.87,243.79,23.22827622]
[1732193255186,23.22827622,243.91,243.83,23.22827622]
[1732193255356,23.22827622,243.91,243.81,23.22827622]
[1732193255555,23.22827622,243.87,243.79,23.22827622]
[1732193256385,23.22827622,243.91,243.83,23.22827622]
[1732193256569,23.22827622,243.91,243.83,27.32937622]
[1732193256780,23.22827622,243.91,243.83,4.1011]
[1732193256977,23.22827622,243.89,243.83,4.1011]
[1732193257479,4.0998,243.92,243.83,37.58237622]
[1732193257480,23.22827622,243.91,243.83,37.58237622]
[1732193257679,23.22827622,243.89,243.81,23.22827622]
[1732193258177,23.22827622,243.96,243.87,23.22827622]
[1732193258565,23.22827622,243.94,243.86,4.1007]
[1732193259787,23.22827622,243.94,243.86,14.3524]
[1732193260385,4.0991,243.96,243.87,23.22827622]
[1732193260386,23.22827622,243.96,243.87,23.22827622]
[1732193260561,23.22827622,243.98,243.89,23.22827622]
[1732193260761,23.22827622,244.02,243.93,23.22827622]
[1732193260979,23.22827622,244.02,243.9,0.5]
[1732193260980,23.22827622,244.02,243.95,23.22827622]
[1732193261486,23.22827622,244.02,243.93,23.22827622]
[1732193261693,4.0976,244.05,243.91,23.22827622]
[1732193261694,23.22827622,244.0,243.91,23.22827622]
[1732193261985,23.22827622,243.96,243.91,10.2493]
[1732193263194,23.22827622,243.96,243.91,14.3491]
[1732193263484,23.22827622,243.98,243.91,14.3491]
[1732193264061,0.2,244.07,243.93,23.22827622]
[1732193264062,23.22827622,244.0,243.93,23.22827622]
[1732193265213,23.22827622,244.02,243.95,20.0]
[1732193265484,23.22827622,244.04,243.95,43.22827622]
[1732193266090,23.22827622,244.06,243.97,23.22827622]
[1732193266964,23.22827622,244.06,243.98,14.3453]
[1732193267761,0.2,244.12,243.98,14.3453]
[1732193267762,23.22827622,244.04,243.98,14.3453]
[1732193268375,23.22827622,244.06,243.98,14.3453]
[1732193268577,12.7124,244.23,244.06,1.0]
[1732193268764,6.37663237,244.3,244.13,20.0]
[1732193268765,23.22827622,244.22,244.13,20.0]
[1732193268968,4.0936,244.28,244.15,14.3354]
[1732193268969,23.22827622,244.24,244.15,14.3354]
[1732193269169,23.22827622,244.26,244.17,20.0]
[1732193269380,23.22827622,244.26,244.16,23.22827622]
[1732193269773,0.2,244.45,244.25,23.72827622]
[1732193269976,23.22827622,244.43,244.33,23.22827622]
[1732193270189,0.93345929,244.42,244.36,20.0]
[1732193270387,0.93345929,244.42,244.37,23.22827622]
[1732193270591,23.22827622,244.39,244.3,23.22827622]
[1732193270894,0.93345929,244.38,244.31,20.0]
[1732193271102,23.22827622,244.32,244.24,20.0]
[1732193271265,23.22827622,244.31,244.23,10.2362]
[1732193271669,23.22827622,244.29,244.23,10.2362]
[1732193271970,5.02545929,244.38,244.17,14.3338]
[1732193271971,23.22827622,244.25,244.17,14.3338]
[1732193272167,23.22827622,244.23,244.17,10.2385]
[1732193272403,23.22827622,244.25,244.17,14.334]
[1732193273897,23.22827622,244.27,244.18,23.22827622]
[1732193274204,11.16335929,244.38,244.17,14.334]
[1732193274205,23.22827622,244.33,244.24,23.22827622]
[1732193274495,23.22827622,244.35,244.26,23.22827622]
[1732193275299,23.22827622,244.35,244.26,27.32217622]
[1732193277196,23.22827622,244.35,244.26,37.55707622]
[1732193277496,23.22827622,244.37,244.28,23.22827622]
[1732193277792,23.22827622,244.41,244.32,23.22827622]
[1732193277998,4.0906,244.46,244.26,14.8288]
[1732193277999,23.22827622,244.39,244.3,23.22827622]
[1732193278294,23.22827622,244.35,244.26,14.3288]
[1732193278483,23.22827622,244.33,244.26,14.3288]
[1732193278692,23.22827622,244.31,244.26,14.3288]
[1732193278891,23.22827622,244.31,244.26,10.2349]
[1732193279078,23.22827622,244.31,244.23,4.0943]
[1732193280508,23.22827622,244.31,244.22,23.22827622]
[1732193280509,23.22827622,244.29,244.2,33.46537622]
[1732193280677,23.22827622,244.27,244.2,14.3321]
[1732193281187,27.32217622,244.27,244.2,10.2371]
[1732193281383,23.22827622,244.27,244.2,10.2371]
[1732193281583,23.22827622,244.34,244.25,23.22827622]
[1732193282181,4.0921,244.37,244.23,23.22827622]
[1732193282182,23.22827622,244.32,244.23,23.22827622]
[1732193282377,23.22827622,244.26,244.2,10.2371]
[1732193282579,23.22827622,244.24,244.16,4.0956]
[1732193282875,23.22827622,244.24,244.16,14.3347]
[1732193283086,23.22827622,244.26,244.16,14.3347]
[1732193283505,23.22827622,244.2,244.13,12.4122]
[1732193283681,23.22827622,244.18,244.13,12.4122]
[1732193284186,23.22827622,244.18,244.12,32.6434]
[1732193284502,23.22827622,244.18,244.12,36.7396]
[1732193284888,23.22827622,244.18,244.11,10.2412]
[1732193285094,23.22827622,244.18,244.11,14.3377]
[1732193286581,23.22827622,244.16,244.11,14.3377]
[1732193287080,23.22827622,244.12,244.05,10.2434]
[1732193287293,23.22827622,244.08,244.05,10.2434]
[1732193287990,23.22827622,244.08,244.03,4.0977]
[1732193288185,23.22827622,244.08,244.0,10.2458]
[1732193288381,23.22827622,244.08,244.0,14.3441]
[1732193288586,23.22827622,244.04,243.99,13.0295]
[1732193288788,23.22827622,244.04,243.97,35.5536]
[1732193288988,23.22827622,244.02,243.97,31.4549]
[1732193289879,23.22827622,244.02,243.95,10.2478]
[1732193290078,4.0969,244.09,243.95,10.2478]
[1732193290079,23.22827622,244.04,243.95,14.347]
[1732193290279,23.22827622,244.09,244.01,23.22827622]
[1732193290484,0.2,244.11,244.01,23.22827622]
[1732193290485,23.22827622,244.11,244.01,23.22827622]
[1732193290685,23.22827622,244.09,244.01,23.22827622]
[1732193290985,23.22827622,244.09,243.99,23.22827622]
[1732193291186,23.22827622,244.07,243.99,23.22827622]
[1732193291405,23.22827622,244.07,244.0,20.0]
[1732193291692,23.22827622,244.07,244.0,24.0983]
[1732193291891,23.22827622,244.07,244.0,4.0983]
[1732193292311,23.22827622,244.05,243.98,14.3453]
[1732193292786,0.2,244.18,243.98,14.3453]
[1732193292787,23.22827622,244.07,243.98,14.3453]
[1732193293514,23.22827622,244.07,243.99,23.22827622]
[1732193293705,23.22827622,244.07,244.0,4.0983]
[1732193294313,23.22827622,244.05,243.98,14.3453]
[1732193294486,14.3356,244.15,243.98,14.3453]
[1732193294487,23.22827622,244.03,243.98,10.2467]
[1732193294688,23.22827622,244.01,243.94,4.0993]
[1732193294892,23.22827622,243.99,243.93,10.2486]
[1732193295092,23.22827622,244.08,243.89,4.1001]
[1732193295093,23.22827622,243.95,243.89,4.1001]
[1732193295693,0.47112612,244.06,243.89,4.1001]
[1732193295694,23.22827622,243.97,243.89,4.1001]
[1732193295916,23.22827622,243.99,243.89,4.1001]
[1732193296809,23.22827622,244.03,243.94,23.22827622]
[1732193297023,23.22827622,244.07,243.98,23.22827622]
[1732193297200,23.22827622,244.09,244.0,23.22827622]
[1732193297813,23.22827622,244.07,244.01,4.0981]
[1732193298223,23.22827622,244.07,243.99,10.2462]
[1732193298719,23.22827622,244.05,243.97,4.0987]
[1732193299702,23.22827622,244.09,243.99,23.22827622]
[1732193299914,23.22827622,244.05,243.97,68.47317622]
[1732193300716,23.22827622,244.07,243.97,88.96747622]
[1732193301027,23.22827622,244.09,244.01,23.22827622]
[1732193301200,23.22827622,244.13,244.05,23.22827622]
[1732193301400,23.22827622,244.15,244.07,23.22827622]
[1732193301619,23.22827622,244.19,244.11,23.22827622]
[1732193302214,23.22827622,244.21,244.11,23.22827622]
[1732193302421,23.22827622,244.21,244.13,23.22827622]
[1732193303227,23.22827622,244.23,244.16,20.0]
[1732193303426,36.37497622,244.32,244.17,23.22827622]
[1732193303427,23.22827622,244.25,244.17,23.22827622]
[1732193303724,23.22827622,244.27,244.19,23.22827622]
[1732193304403,23.22827622,244.32,244.23,23.22827622]
[1732193305297,23.22827622,244.32,244.24,4.0943]
[1732193305502,23.22827622,244.32,244.24,14.3301]
[1732193305703,10.69952612,244.42,244.24,14.3301]
[1732193305704,23.22827622,244.36,244.27,23.22827622]
[1732193306422,4.0911,244.43,244.24,14.3301]
[1732193306423,23.22827622,244.34,244.26,20.0]
[1732193306931,23.22827622,244.34,244.27,4.0938]
[1732193307826,23.22827622,244.32,244.25,14.3294]
[1732193308122,23.22827622,244.34,244.26,20.0]
[1732193308697,23.22827622,244.32,244.25,14.3294]
[1732193308919,23.22827622,244.34,244.25,37.55767622]
[1732193309117,23.22827622,244.34,244.26,20.0]
[1732193309307,23.22827622,244.38,244.29,23.22827622]
[1732193309713,23.22827622,244.36,244.27,23.22827622]
[1732193310427,23.22827622,244.34,244.27,4.0937]
[1732193310729,23.22827622,244.32,244.25,44.8869]
[1732193310897,23.22827622,244.3,244.25,44.8869]
[1732193311101,23.22827622,244.28,244.19,33.46587622]
[1732193311318,23.22827622,244.28,244.2,20.0]
[1732193311500,23.22827622,244.24,244.19,10.2376]
[1732193311708,23.22827622,244.32,244.19,10.2376]
[1732193311709,23.22827622,244.26,244.19,14.3327]
[1732193311927,23.22827622,244.28,244.19,37.56097622]
[1732193312223,23.22827622,244.28,244.19,14.3327]
[1732193312424,27.32197622,244.28,244.19,14.3327]
[1732193312926,23.22827622,244.3,244.21,23.22827622]
[1732193313118,23.22827622,244.32,244.23,23.22827622]
[1732193313329,23.22827622,244.34,244.25,23.22827622]
[1732193313628,4.0919,244.38,244.23,23.22827622]
[1732193313629,23.22827622,244.32,244.23,23.22827622]
[1732193313809,4.0919,244.38,244.19,14.3327]
[1732193313810,23.22827622,244.28,244.19,14.3327]
[1732193314128,23.22827622,244.26,244.2,20.0]
[1732193314535,23.22827622,244.26,244.19,10.2376]
[1732193314830,27.32227622,244.26,244.19,10.2376]
[1732193315027,23.22827622,244.24,244.19,10.2376]
[1732193316034,23.22827622,244.22,244.15,4.0957]
[1732193316218,23.22827622,244.2,244.15,20.0]
[1732193316527,23.22827622,244.18,244.14,10.2399]
[1732193316923,23.22827622,244.18,244.09,37.56697622]
[1732193317118,4.095,244.2,244.09,14.3387]
[1732193317119,23.22827622,244.16,244.09,14.3387]
[1732193318824,23.22827622,244.2,244.11,23.22827622]
[1732193319233,23.22827622,244.18,244.09,37.56697622]
[1732193319532,23.22827622,244.2,244.09,37.56697622]
[1732193319736,23.22827622,244.2,244.1,20.0]
[1732193320105,23.22827622,244.2,244.11,14.3377]
[1732193320335,23.22827622,244.18,244.11,10.2412]
[1732193320818,4.0948,244.21,244.07,24.097]
[1732193320819,23.22827622,244.14,244.07,24.097]
[1732193321225,23.22827622,244.12,244.04,44.9237]
[1732193321430,23.22827622,244.1,244.04,44.9237]
[1732193322110,23.22827622,244.1,244.04,59.2654]
[1732193323439,23.22827622,244.12,244.04,59.2654]
[1732193326528,23.22827622,244.08,244.01,24.098]
[1732193328035,23.22827622,244.08,243.99,14.3445]
[1732193328036,23.22827622,244.06,243.99,14.3445]
[1732193328336,23.22827622,244.06,244.0,1004.0982]
[1732193328716,23.22827622,244.06,244.0,1000.0]
[1732193328911,4.0971,244.08,244.0,1000.0]
[1732193328912,23.22827622,244.04,244.0,1000.0]
[1732193330634,23.22827622,244.06,244.0,1000.0]
[1732193331007,23.22827622,244.06,244.0,1004.0983]
[1732193331409,23.22827622,244.06,244.0,1000.0]
[1732193332312,23.22827622,244.06,244.0,1004.0983]
[1732193333536,23.22827622,244.1,244.01,23.22827622]
[1732193333719,27.32457622,244.12,244.03,23.22827622]
[1732193333920,12.569,244.22,244.05,23.22827622]
[1732193333921,23.22827622,244.14,244.05,23.22827622]
[1732193334835,23.22827622,244.14,244.06,34.3406]
[1732193335141,23.22827622,244.16,244.07,23.22827622]
[1732193336042,12.569,244.22,244.06,34.3406]
[1732193336043,23.22827622,244.14,244.06,34.3406]
[1732193336413,23.22827622,244.16,244.07,23.22827622]
[1732193337720,27.32397622,244.16,244.08,14.3395]
[1732193337916,23.22827622,244.16,244.08,14.3395]
[1732193339324,23.22827622,244.12,244.08,10.2425]
[1732193339726,23.22827622,244.14,244.08,10.2425]
[1732193340142,23.22827622,244.16,244.08,10.2425]
[1732193340547,23.22827622,244.18,244.09,23.22827622]
[1732193340866,23.22827622,244.2,244.11,23.22827622]
[1732193341815,23.22827622,244.18,244.11,4.0965]
[1732193342245,23.22827622,244.18,244.08,10.2425]
[1732193342246,23.22827622,244.16,244.08,10.2425]
[1732193342640,23.22827622,244.16,244.05,33.0875]
[1732193342641,23.22827622,244.12,244.05,37.1849]
[1732193342949,14.333,244.19,244.05,33.0875]
[1732193342950,23.22827622,244.1,244.05,33.0875]
[1732193343116,23.22827622,244.1,244.04,10.2442]
[1732193343318,23.22827622,244.08,244.01,4.098]
[1732193343524,23.22827622,244.06,244.0,1030.8415]
[1732193343948,27.32567622,244.06,244.0,1030.8415]
[1732193344247,27.32567622,244.06,244.0,1000.0]
[1732193344546,23.22827622,244.06,244.0,1004.0983]
[1732193345250,23.22827622,244.02,244.0,1000.0]
[1732193346045,23.22827622,244.07,244.0,1004.0983]
[1732193346355,23.22827622,244.07,244.0,1010.2459]
[1732193346554,23.22827622,244.05,244.0,1010.2459]
[1732193346732,23.22827622,244.07,244.0,1010.2459]
[1732193347133,23.22827622,244.09,244.0,1014.3442]
[1732193347650,23.22827622,244.07,244.0,1014.3442]
[1732193348056,23.22827622,244.09,244.01,23.22827622]
[1732193348257,23.776884,244.11,244.01,23.22827622]
[1732193348258,27.32487622,244.11,244.01,23.22827622]
[1732193348429,23.22827622,244.09,244.0,1014.3442]
[1732193348752,23.22827622,244.05,244.0,1010.2459]
[1732193348934,23.776884,244.02,244.0,1000.0]
[1732193349140,23.22827622,244.01,244.0,1000.0]
[1732193351230,47.00516022,244.01,244.0,1000.0]
[1732193352148,23.22827622,244.01,244.0,1000.0]
[1732193352340,23.22827622,244.03,244.0,1000.0]
[1732193352837,23.22827622,244.05,244.0,1000.0]
[1732193353024,23.22827622,244.05,244.01,4.0981]
[1732193353228,40.2756,244.17,244.01,4.0981]
[1732193353229,23.22827622,244.07,244.01,4.0981]
[1732193353448,23.22827622,244.09,244.01,77.44267622]
[1732193353660,23.22827622,244.09,244.01,54.2144]
[1732193353861,23.22827622,244.07,244.01,64.4598]
[1732193354031,23.22827622,244.04,244.01,14.3435]
[1732193354225,23.22827622,244.04,244.01,10.2454]
[1732193354452,23.22827622,244.02,244.0,1000.0]
[1732193354832,23.776884,244.01,244.0,1000.0]
[1732193355350,47.00516022,244.01,244.0,1000.0]
[1732193355893,51.10326022,244.01,244.0,1000.0]
[1732193357257,47.00516022,244.01,244.0,1000.0]
[1732193359848,23.776884,244.01,244.0,1000.0]
[1732193360166,23.22827622,244.01,244.0,1000.0]
[1732193361562,47.00516022,244.01,244.0,1000.0]
[1732193364340,23.22827622,244.01,244.0,1000.0]
[1732193364554,23.22827622,244.03,244.0,1000.0]
[1732193365563,23.22827622,244.01,244.0,1000.0]
[1732193365992,47.00516022,244.01,244.0,1000.0]
[1732193367653,23.22827622,244.01,244.0,1000.0]
[1732193367858,23.22827622,244.03,244.0,1000.0]
[1732193368258,23.22827622,244.01,244.0,1000.0]
[1732193368946,47.00516022,244.01,244.0,1000.0]
[1732193369861,23.22827622,244.01,244.0,1000.0]
[1732193370280,10.242,244.1,244.0,1000.0]
[1732193370281,23.22827622,244.05,244.0,1014.3442]
[1732193370442,23.22827622,244.11,244.02,32.6055]
[1732193370846,23.22827622,244.11,244.02,55.83377622]
[1732193371060,23.22827622,244.13,244.04,23.22827622]
[1732193371271,23.22827622,244.15,244.06,23.22827622]
[1732193371443,23.22827622,244.15,244.07,14.34]
[1732193371642,23.22827622,244.13,244.08,20.0]
[1732193371850,23.22827622,244.15,244.08,20.0]
[1732193372347,23.22827622,244.17,244.08,43.22827622]
[1732193372552,6.37663237,244.21,244.08,43.22827622]
[1732193372553,23.22827622,244.21,244.12,23.22827622]
[1732193372746,23.22827622,244.21,244.11,20.0]
[1732193373142,23.22827622,244.19,244.11,20.0]
[1732193373544,23.22827622,244.21,244.13,20.0]
[1732193374162,23.22827622,244.17,244.1,4.0965]
[1732193374375,23.22827622,244.13,244.09,45.8074]
[1732193374672,23.22827622,244.11,244.07,10.2429]
[1732193375187,23.22827622,244.11,244.04,49.5057]
[1732193375675,23.22827622,244.11,244.04,59.7499]
[1732193375869,23.22827622,244.13,244.04,82.97817622]
[1732193376368,23.22827622,244.13,244.0,1020.4918]
[1732193376369,23.22827622,244.07,244.02,4.0979]
[1732193376574,23.22827622,244.05,244.0,1000.0]
[1732193376762,23.22827622,244.05,244.0,1004.0983]
[1732193376963,23.22827622,244.05,244.0,1000.0]
[1732193377659,23.22827622,244.05,244.0,1004.0982]
[1732193377859,23.22827622,244.07,244.0,1004.0982]
[1732193378055,23.22827622,244.09,244.01,23.22827622]
[1732193378252,23.22827622,244.13,244.03,23.22827622]
[1732193378467,23.22827622,244.11,244.03,23.22827622]
[1732193378670,23.22827622,244.11,244.01,23.22827622]
[1732193378876,23.22827622,244.11,244.02,20.0]
[1732193379652,23.22827622,244.11,244.03,37.57067622]
[1732193379858,23.22827622,244.13,244.03,37.57067622]
[1732193380053,4.095,244.2,244.07,23.22827622]
[1732193380276,23.22827622,244.17,244.07,23.22827622]
[1732193380460,23.22827622,244.15,244.08,20.0]
[1732193380850,23.22827622,244.15,244.05,23.22827622]
[1732193381054,23.22827622,244.11,244.04,20.0]
[1732193381380,27.32327622,244.2,244.04,20.0]
[1732193381381,4.095,244.2,244.04,20.0]
[1732193381577,23.22827622,244.12,244.05,4.0975]
[1732193382678,23.22827622,244.1,244.05,4.0975]
[1732193383679,23.22827622,244.14,244.05,23.22827622]
[1732193383877,23.22827622,244.16,244.05,23.22827622]
[1732193384082,23.22827622,244.16,244.07,23.22827622]
[1732193384256,30.4722,244.25,244.11,23.22827622]
[1732193384257,23.22827622,244.2,244.11,23.22827622]
[1732193384458,23.22827622,244.2,244.11,55.69837622]
[1732193384681,23.22827622,244.22,244.11,55.69837622]
[1732193385061,23.22827622,244.2,244.11,55.69837622]
[1732193385373,23.22827622,244.18,244.11,32.4701]
[1732193385576,23.22827622,244.18,244.12,4.0963]
[1732193386770,27.32367622,244.18,244.11,32.4701]
[1732193386971,23.22827622,244.16,244.11,36.5665]
[1732193387277,23.22827622,244.16,244.11,46.8077]
[1732193388667,23.22827622,244.16,244.11,42.7113]
[1732193388873,23.22827622,244.16,244.11,46.8078]
[1732193389068,23.22827622,244.18,244.11,46.8078]
[1732193389377,23.22827622,244.16,244.11,46.8078]
[1732193389867,23.22827622,244.16,244.11,42.7113]
[1732193390467,23.22827622,244.13,244.07,4.0971]
[1732193390872,23.22827622,244.13,244.06,30.243]
[1732193391185,23.22827622,244.13,244.06,14.3403]
[1732193393860,23.22827622,244.11,244.06,14.3403]
[1732193395163,6.47663237,244.22,244.09,20.0]
[1732193395164,4.0948,244.21,244.09,20.0]
[1732193395363,23.22827622,244.19,244.09,20.0]
[1732193396071,23.22827622,244.21,244.11,20.0]
[1732193396759,23.22827622,244.19,244.11,20.0]
[1732193397283,23.22827622,244.19,244.12,4.0963]
[1732193397485,23.22827622,244.17,244.12,14.3371]
[1732193398680,23.22827622,244.17,244.12,10.2408]
[1732193401290,27.32377622,244.17,244.1,4.0966]
[1732193401583,10.2355,244.25,244.08,4.0968]
[1732193401584,23.22827622,244.13,244.08,4.0968]
[1732193401762,23.22827622,244.13,244.08,14.3393]
[1732193402387,23.22827622,244.13,244.06,20.4867]
[1732193402388,23.22827622,244.13,244.06,4.0972]
[1732193402590,23.22827622,244.11,244.06,4.0972]
[1732193403092,23.22827622,244.11,244.06,14.3405]
[1732193403288,23.22827622,244.13,244.06,14.3405]
[1732193403585,23.22827622,244.17,244.07,23.22827622]
[1732193403794,23.22827622,244.17,244.08,20.0]
[1732193405083,23.22827622,244.13,244.09,14.3389]
[1732193405793,23.22827622,244.13,244.09,10.2421]
[1732193406165,23.22827622,244.13,244.07,4.0971]
[1732193407390,23.22827622,244.13,244.06,14.3406]
[1732193407391,27.32447622,244.13,244.06,14.3406]
[1732193407883,23.22827622,244.13,244.06,14.3406]
[1732193408077,27.32447622,244.13,244.06,14.3406]
[1732193408279,23.22827622,244.11,244.06,14.3406]
[1732193408692,14.4861738,244.11,244.06,14.3406]
[1732193409571,14.4861738,244.07,244.02,4.0978]
[1732193409868,23.776884,244.14,244.0,1014.3441]
[1732193410084,14.4861738,244.06,244.0,1014.3441]